[Event "*** SCC Grand Prix: Titled Tuesday Blitz"]
[Site "Chess.com"]
[Date "2020.07.07"]
[Round "9"]
[White "jacky72"]
[Black "AttilaTurzo"]
[Result "1-0"]
[WhiteElo "2649"]
[BlackElo "2509"]
[TimeControl "180+1"]
[EndTime "11:48:04 PDT"]
[Termination "jacky72 won by resignation"]

1. d4 {[%clk 0:03:00.6]} 1... Nf6 {[%clk 0:02:59.8]} 2. c4 {[%clk 0:02:59.6]}
2... g6 {[%clk 0:03:00.1]} 3. Nc3 {[%clk 0:02:59.3]} 3... d5 {[%clk 0:03:00.6]}
4. Nf3 {[%clk 0:02:55.1]} 4... Bg7 {[%clk 0:02:58.8]} 5. h4 {[%clk 0:02:53.5]}
5... dxc4 {[%clk 0:02:52]} 6. e4 {[%clk 0:02:53.4]} 6... O-O {[%clk 0:02:48.1]}
7. e5 {[%clk 0:02:50.8]} 7... Nd5 {[%clk 0:02:44.5]} 8. Bxc4 {[%clk 0:02:50.4]}
8... Nb6 {[%clk 0:02:36.7]} 9. Be2 {[%clk 0:02:47.9]} 9... Bg4 {[%clk
0:02:35.9]} 10. Be3 {[%clk 0:02:46.7]} 10... Nc6 {[%clk 0:02:33.5]} 11. Rc1
{[%clk 0:02:47]} 11... Nd5 {[%clk 0:02:31.3]} 12. Qd2 {[%clk 0:02:44]} 12...
Nxe3 {[%clk 0:02:29.9]} 13. fxe3 {[%clk 0:02:41.6]} 13... f6 {[%clk 0:02:23.2]}
14. exf6 {[%clk 0:02:34.1]} 14... Bxf6 {[%clk 0:02:15.9]} 15. Ne4 {[%clk
0:02:31.6]} 15... Bg7 {[%clk 0:02:12.7]} 16. Nfg5 {[%clk 0:02:28.6]} 16... Qc8
{[%clk 0:01:58.3]} 17. Bc4+ {[%clk 0:02:26.4]} 17... e6 {[%clk 0:01:37.4]} 18.
d5 {[%clk 0:02:24.8]} 18... Ne5 {[%clk 0:01:32.5]} 19. Bb3 {[%clk 0:02:15.9]}
19... exd5 {[%clk 0:01:27.2]} 20. Qxd5+ {[%clk 0:02:14.3]} 20... Kh8 {[%clk
0:01:27.5]} 21. h5 {[%clk 0:01:58.2]} 21... gxh5 {[%clk 0:01:11.4]} 22. Ng3
{[%clk 0:01:46.6]} 22... Qd8 {[%clk 0:00:53.7]} 23. Qxd8 {[%clk 0:01:36.7]}
23... Raxd8 {[%clk 0:00:53.2]} 24. Rxc7 {[%clk 0:01:12.9]} 24... Nd3+ {[%clk
0:00:40.8]} 25. Kd2 {[%clk 0:01:13]} 25... Nf2+ {[%clk 0:00:29.9]} 26. Kc2
{[%clk 0:01:12.2]} 26... Nxh1 {[%clk 0:00:28.9]} 27. Nxh1 {[%clk 0:01:11.2]}
27... Rc8 {[%clk 0:00:26.4]} 28. Nf7+ {[%clk 0:01:09]} 28... Rxf7 {[%clk
0:00:26.3]} 29. Rxc8+ {[%clk 0:01:07.7]} 29... Bxc8 {[%clk 0:00:27.2]} 30. Bxf7
{[%clk 0:01:06.3]} 30... Bf5+ {[%clk 0:00:24.7]} 31. Kb3 {[%clk 0:00:52.6]}
31... Be4 {[%clk 0:00:24.3]} 32. Bxh5 {[%clk 0:00:53.2]} 32... Bxg2 {[%clk
0:00:24.2]} 33. Ng3 {[%clk 0:00:53.8]} 33... Be5 {[%clk 0:00:23.5]} 34. Nf5
{[%clk 0:00:53]} 34... Bd5+ {[%clk 0:00:23.4]} 35. Ka3 {[%clk 0:00:51.3]} 35...
Be6 {[%clk 0:00:21]} 36. Nd4 {[%clk 0:00:45.5]} 36... Bxd4 {[%clk 0:00:20.8]}
37. exd4 {[%clk 0:00:46.4]} 37... Kg7 {[%clk 0:00:19]} 38. Bf3 {[%clk
0:00:46.4]} 38... b6 {[%clk 0:00:18.5]} 39. b3 {[%clk 0:00:46.9]} 39... Kf6
{[%clk 0:00:18.3]} 40. Kb4 {[%clk 0:00:47.4]} 40... Bd7 {[%clk 0:00:18]} 41. Kc4
{[%clk 0:00:46.3]} 41... Kg5 {[%clk 0:00:17.6]} 42. Kd5 {[%clk 0:00:44.8]} 42...
h5 {[%clk 0:00:17.9]} 43. Kd6 {[%clk 0:00:44]} 43... Bg4 {[%clk 0:00:16.4]} 44.
Bg2 {[%clk 0:00:38.9]} 44... h4 {[%clk 0:00:16.6]} 45. d5 {[%clk 0:00:38.8]}
45... h3 {[%clk 0:00:14.1]} 46. Bh1 {[%clk 0:00:37.3]} 46... Kf4 {[%clk
0:00:13.8]} 47. Kc7 {[%clk 0:00:34]} 47... Bf3 {[%clk 0:00:14.7]} 48. Bxf3
{[%clk 0:00:34.1]} 48... Kxf3 {[%clk 0:00:15.6]} 49. d6 {[%clk 0:00:35]} 49...
h2 {[%clk 0:00:15.7]} 50. d7 {[%clk 0:00:35.1]} 50... h1=Q {[%clk 0:00:15.4]}
51. d8=Q {[%clk 0:00:36]} 51... Qh2+ {[%clk 0:00:12.6]} 52. Kb7 {[%clk
0:00:34.5]} 52... Qxa2 {[%clk 0:00:13.5]} 53. Qf6+ {[%clk 0:00:31.1]} 53... Ke3
{[%clk 0:00:13.6]} 54. Qc3+ {[%clk 0:00:28.7]} 54... Ke4 {[%clk 0:00:13.3]} 55.
Qc4+ {[%clk 0:00:27.2]} 55... Ke3 {[%clk 0:00:13.6]} 56. Qc3+ {[%clk 0:00:24.4]}
56... Ke2 {[%clk 0:00:13.9]} 57. b4 {[%clk 0:00:22.7]} 57... Qd2 {[%clk
0:00:11.8]} 58. Qxd2+ {[%clk 0:00:19.2]} 58... Kxd2 {[%clk 0:00:12.7]} 59. b5
{[%clk 0:00:19.8]} 59... a5 {[%clk 0:00:06.4]} 60. bxa6 {[%clk 0:00:19.2]} 60...
b5 {[%clk 0:00:06.6]} 61. a7 {[%clk 0:00:20.1]} 61... b4 {[%clk 0:00:07]} 62.
a8=Q {[%clk 0:00:21]} 62... b3 {[%clk 0:00:07.4]} 63. Qa3 {[%clk 0:00:17.9]}
63... Kc2 {[%clk 0:00:06.9]} 64. Qc5+ {[%clk 0:00:18.1]} 64... Kb1 {[%clk
0:00:06.2]} 65. Kb6 {[%clk 0:00:16.9]} 65... b2 {[%clk 0:00:06.6]} 66. Qc4
{[%clk 0:00:14.7]} 66... Ka1 {[%clk 0:00:05.7]} 67. Qa4+ {[%clk 0:00:15.2]}
67... Kb1 {[%clk 0:00:05.4]} 68. Kc5 {[%clk 0:00:16.1]} 68... Kc1 {[%clk
0:00:06]} 69. Qc4+ {[%clk 0:00:16.2]} 69... Kd1 {[%clk 0:00:05.9]} 70. Qb3+
{[%clk 0:00:16.4]} 70... Kc1 {[%clk 0:00:05.9]} 71. Qc3+ {[%clk 0:00:16.9]}
71... Kb1 {[%clk 0:00:06.2]} 72. Kb4 {[%clk 0:00:17.4]} 72... Ka1 {[%clk
0:00:06.6]} 73. Ka3 {[%clk 0:00:16]} 1-0

[Event "*** SCC Grand Prix: Titled Tuesday Blitz"]
[Site "Chess.com"]
[Date "2020.07.07"]
[Round "9"]
[White "Artyom_ChessMate"]
[Black "Tactictic"]
[Result "1-0"]
[WhiteElo "2490"]
[BlackElo "2285"]
[TimeControl "180+1"]
[EndTime "11:48:05 PDT"]
[Termination "Artyom_ChessMate won on time"]

1. e4 {[%clk 0:03:00.9]} 1... c5 {[%clk 0:02:58.7]} 2. Nc3 {[%clk 0:03:00.9]}
2... Nc6 {[%clk 0:02:58.3]} 3. Bb5 {[%clk 0:03:00.2]} 3... Nd4 {[%clk
0:02:57.8]} 4. Nf3 {[%clk 0:03:00.3]} 4... Nxb5 {[%clk 0:02:57.4]} 5. Nxb5
{[%clk 0:03:01.2]} 5... e6 {[%clk 0:02:56.2]} 6. d4 {[%clk 0:03:01.1]} 6... a6
{[%clk 0:02:46.3]} 7. Nc3 {[%clk 0:03:00.9]} 7... cxd4 {[%clk 0:02:44.5]} 8.
Qxd4 {[%clk 0:03:01.8]} 8... d6 {[%clk 0:02:43.1]} 9. Be3 {[%clk 0:02:52.3]}
9... Nf6 {[%clk 0:02:40.5]} 10. O-O-O {[%clk 0:02:49.4]} 10... Be7 {[%clk
0:02:38.1]} 11. e5 {[%clk 0:02:49.2]} 11... dxe5 {[%clk 0:02:34.1]} 12. Qxe5
{[%clk 0:02:50.1]} 12... Bd7 {[%clk 0:02:32.4]} 13. Bg5 {[%clk 0:02:02]} 13...
O-O {[%clk 0:01:51.7]} 14. Kb1 {[%clk 0:01:37.5]} 14... Qb6 {[%clk 0:01:46.9]}
15. Qg3 {[%clk 0:01:34.3]} 15... Bc6 {[%clk 0:01:32.1]} 16. Ne5 {[%clk
0:01:27.4]} 16... Nh5 {[%clk 0:01:18.5]} 17. Qg4 {[%clk 0:01:18.8]} 17... Bxg5
{[%clk 0:01:16.8]} 18. Qxg5 {[%clk 0:01:17.4]} 18... Nf6 {[%clk 0:01:17.7]} 19.
h4 {[%clk 0:01:13.8]} 19... Qxf2 {[%clk 0:00:57.8]} 20. Nxc6 {[%clk 0:01:07.6]}
20... bxc6 {[%clk 0:00:56.7]} 21. Rhf1 {[%clk 0:01:05.8]} 21... h6 {[%clk
0:00:48.1]} 22. Rxf2 {[%clk 0:00:55]} 22... hxg5 {[%clk 0:00:47.7]} 23. hxg5
{[%clk 0:00:55.9]} 23... Nd5 {[%clk 0:00:46.6]} 24. Ne4 {[%clk 0:00:56]} 24...
Rfd8 {[%clk 0:00:45.6]} 25. Rh1 {[%clk 0:00:55.3]} 25... Ne3 {[%clk 0:00:39.1]}
26. Kc1 {[%clk 0:00:49.2]} 26... Rd4 {[%clk 0:00:36.4]} 27. Nc3 {[%clk
0:00:42.8]} 27... Rad8 {[%clk 0:00:35.5]} 28. Re2 {[%clk 0:00:32.7]} 28... Nf5
{[%clk 0:00:29.1]} 29. Rhe1 {[%clk 0:00:25.9]} 29... Rg4 {[%clk 0:00:24.6]} 30.
Ne4 {[%clk 0:00:21.8]} 30... Ng3 {[%clk 0:00:24.6]} 31. Nxg3 {[%clk 0:00:21.5]}
31... Rxg3 {[%clk 0:00:25.5]} 32. b3 {[%clk 0:00:16.2]} 32... Rxg5 {[%clk
0:00:25.1]} 33. Rf1 {[%clk 0:00:16.7]} 33... Rdd5 {[%clk 0:00:23.8]} 34. Rf4
{[%clk 0:00:16.7]} 34... Rgf5 {[%clk 0:00:20.8]} 35. Ra4 {[%clk 0:00:16.3]}
35... a5 {[%clk 0:00:21.2]} 36. Rc4 {[%clk 0:00:16.6]} 36... Rc5 {[%clk
0:00:21.7]} 37. Rd4 {[%clk 0:00:16.3]} 37... Rfd5 {[%clk 0:00:21.8]} 38. Rh4
{[%clk 0:00:16.1]} 38... e5 {[%clk 0:00:21]} 39. Kb2 {[%clk 0:00:14.9]} 39... f6
{[%clk 0:00:21.3]} 40. a4 {[%clk 0:00:15.3]} 40... Rd1 {[%clk 0:00:20.2]} 41. g4
{[%clk 0:00:09.4]} 41... Rcd5 {[%clk 0:00:19.3]} 42. Reh2 {[%clk 0:00:08.1]}
42... Kf7 {[%clk 0:00:18.5]} 43. Rh8 {[%clk 0:00:07.9]} 43... R5d2 {[%clk
0:00:18]} 44. Rxd2 {[%clk 0:00:07]} 44... Rxd2 {[%clk 0:00:18.9]} 45. Rc8 {[%clk
0:00:07.7]} 45... Rd6 {[%clk 0:00:19.1]} 46. Ra8 {[%clk 0:00:07.4]} 46... Rd5
{[%clk 0:00:19.2]} 47. Ra6 {[%clk 0:00:06.8]} 47... Rc5 {[%clk 0:00:19.3]} 48.
c3 {[%clk 0:00:05.4]} 48... Kg6 {[%clk 0:00:19.3]} 49. b4 {[%clk 0:00:05.9]}
49... axb4 {[%clk 0:00:19.4]} 50. cxb4 {[%clk 0:00:06.8]} 50... Rc4 {[%clk
0:00:20]} 51. Kb3 {[%clk 0:00:07.3]} 51... Rxg4 {[%clk 0:00:20]} 52. Rxc6 {[%clk
0:00:07.9]} 52... e4 {[%clk 0:00:20.4]} 53. a5 {[%clk 0:00:08.3]} 53... e3
{[%clk 0:00:20.9]} 54. Rc2 {[%clk 0:00:08.8]} 54... f5 {[%clk 0:00:10.8]} 55. a6
{[%clk 0:00:08.5]} 55... Rh4 {[%clk 0:00:10.3]} 56. a7 {[%clk 0:00:07.9]} 56...
Rh8 {[%clk 0:00:10.8]} 57. b5 {[%clk 0:00:08.3]} 57... f4 {[%clk 0:00:07.5]} 58.
b6 {[%clk 0:00:08.6]} 58... f3 {[%clk 0:00:07.5]} 59. b7 {[%clk 0:00:04.7]}
59... e2 {[%clk 0:00:07.9]} 60. b8=Q {[%clk 0:00:04.8]} 60... e1=Q {[%clk
0:00:07.7]} 61. Qd6+ {[%clk 0:00:04.9]} 61... Kg5 {[%clk 0:00:05.2]} 62. Rc5+
{[%clk 0:00:04.9]} 62... Kg4 {[%clk 0:00:05.8]} 63. Qg6+ {[%clk 0:00:04.4]}
63... Kh3 {[%clk 0:00:06.1]} 64. Qf5+ {[%clk 0:00:04.3]} 64... Kg2 {[%clk
0:00:06.4]} 65. Qg4+ {[%clk 0:00:04.4]} 65... Kf2 {[%clk 0:00:06.6]} 66. Rc2+
{[%clk 0:00:04.4]} 66... Ke3 {[%clk 0:00:06.8]} 67. Qe6+ {[%clk 0:00:04.1]}
67... Kd3 {[%clk 0:00:06.8]} 68. Qxe1 {[%clk 0:00:04.2]} 1-0

[Event "*** SCC Grand Prix: Titled Tuesday Blitz"]
[Site "Chess.com"]
[Date "2020.07.07"]
[Round "9"]
[White "Legendinunknown"]
[Black "TokChess"]
[Result "1-0"]
[WhiteElo "2563"]
[BlackElo "2423"]
[TimeControl "180+1"]
[EndTime "11:48:08 PDT"]
[Termination "Legendinunknown won by resignation"]

1. e4 {[%clk 0:03:00.9]} 1... d6 {[%clk 0:02:58.6]} 2. d4 {[%clk 0:03:00.4]}
2... Nf6 {[%clk 0:02:59]} 3. Nc3 {[%clk 0:02:59]} 3... Nbd7 {[%clk 0:02:59.2]}
4. Nf3 {[%clk 0:02:57.9]} 4... e5 {[%clk 0:02:59.2]} 5. g4 {[%clk 0:02:57.7]}
5... g6 {[%clk 0:02:58.8]} 6. g5 {[%clk 0:02:53.7]} 6... Nh5 {[%clk 0:02:59]} 7.
Bc4 {[%clk 0:02:47.9]} 7... Bg7 {[%clk 0:02:57.9]} 8. Be3 {[%clk 0:02:44.2]}
8... O-O {[%clk 0:02:57.4]} 9. Qd2 {[%clk 0:02:42.1]} 9... c6 {[%clk 0:02:57.1]}
10. O-O-O {[%clk 0:02:41.2]} 10... b5 {[%clk 0:02:50.9]} 11. Bb3 {[%clk
0:02:38.8]} 11... a5 {[%clk 0:02:38.2]} 12. a3 {[%clk 0:02:30]} 12... b4 {[%clk
0:02:38.2]} 13. Nb1 {[%clk 0:02:25.1]} 13... exd4 {[%clk 0:01:46.9]} 14. Nxd4
{[%clk 0:02:20]} 14... Qc7 {[%clk 0:01:43.5]} 15. f4 {[%clk 0:02:15.9]} 15...
Nc5 {[%clk 0:01:42.9]} 16. Qg2 {[%clk 0:02:09.5]} 16... Nxb3+ {[%clk 0:01:37.9]}
17. Nxb3 {[%clk 0:02:05.8]} 17... a4 {[%clk 0:01:30.3]} 18. Nd4 {[%clk
0:02:03.5]} 18... Rb8 {[%clk 0:01:24.9]} 19. f5 {[%clk 0:01:55.7]} 19... bxa3
{[%clk 0:01:24.3]} 20. Nxa3 {[%clk 0:01:54.4]} 20... c5 {[%clk 0:01:15.5]} 21.
Ndb5 {[%clk 0:01:53.3]} 21... Rxb5 {[%clk 0:00:46.9]} 22. Nxb5 {[%clk
0:01:51.1]} 22... Qb7 {[%clk 0:00:47.1]} 23. f6 {[%clk 0:01:47.1]} 23... Qxb5
{[%clk 0:00:46.2]} 24. fxg7 {[%clk 0:01:46.8]} 24... Nxg7 {[%clk 0:00:44.2]} 25.
Rxd6 {[%clk 0:01:45.7]} 25... Ne6 {[%clk 0:00:24.6]} 26. Qd2 {[%clk 0:01:43.3]}
26... Qc4 {[%clk 0:00:22.7]} 27. Qd3 {[%clk 0:01:40.4]} 27... Qa2 {[%clk
0:00:22.6]} 28. Qa3 {[%clk 0:01:37.8]} 28... Qc4 {[%clk 0:00:21.4]} 29. Qd3
{[%clk 0:01:33.3]} 29... Qa2 {[%clk 0:00:21.4]} 30. Kd2 {[%clk 0:01:23.8]} 30...
Qxb2 {[%clk 0:00:20.7]} 31. h4 {[%clk 0:01:23.7]} 31... a3 {[%clk 0:00:16.7]}
32. Qc3 {[%clk 0:01:19.9]} 32... Qb7 {[%clk 0:00:13.5]} 33. Rd5 {[%clk 0:01:16]}
33... Bd7 {[%clk 0:00:11.7]} 34. h5 {[%clk 0:01:13]} 34... Bc6 {[%clk
0:00:10.1]} 35. hxg6 {[%clk 0:01:07.4]} 35... fxg6 {[%clk 0:00:10.6]} 36. Qe5
{[%clk 0:01:01.9]} 36... Bxd5 {[%clk 0:00:10]} 37. exd5 {[%clk 0:01:02]} 37...
Qb4+ {[%clk 0:00:09.4]} 38. Qc3 {[%clk 0:00:48.8]} 38... Rd8 {[%clk 0:00:08.3]}
39. Qxb4 {[%clk 0:00:45.6]} 39... Rxd5+ {[%clk 0:00:08.5]} 40. Kc3 {[%clk
0:00:45.7]} 40... cxb4+ {[%clk 0:00:08.4]} 41. Kxb4 {[%clk 0:00:46.6]} 41...
Nxg5 {[%clk 0:00:08.6]} 42. Kxa3 {[%clk 0:00:45.6]} 42... Nf3 {[%clk 0:00:07.9]}
43. Kb4 {[%clk 0:00:45.2]} 43... Re5 {[%clk 0:00:07.9]} 44. Bb6 {[%clk
0:00:43.1]} 44... g5 {[%clk 0:00:08.1]} 45. c4 {[%clk 0:00:43.1]} 45... g4
{[%clk 0:00:08.1]} 46. c5 {[%clk 0:00:43.5]} 46... Nd4 {[%clk 0:00:06.8]} 47.
Rh4 {[%clk 0:00:39.6]} 47... Re4 {[%clk 0:00:06.1]} 48. Kc3 {[%clk 0:00:37.6]}
48... Nc6 {[%clk 0:00:05.7]} 49. Kd3 {[%clk 0:00:37.8]} 49... Ra4 {[%clk
0:00:05.2]} 50. Rh6 {[%clk 0:00:37.3]} 50... Ne5+ {[%clk 0:00:04.6]} 51. Ke3
{[%clk 0:00:37.6]} 51... Kg7 {[%clk 0:00:03]} 52. Re6 {[%clk 0:00:36.8]} 52...
Nc4+ {[%clk 0:00:02.2]} 53. Kf2 {[%clk 0:00:35.9]} 53... Nxb6 {[%clk 0:00:02.9]}
54. cxb6 {[%clk 0:00:35.6]} 54... Rb4 {[%clk 0:00:03.4]} 55. Kg3 {[%clk
0:00:35.6]} 55... Kf7 {[%clk 0:00:03.7]} 56. Rh6 {[%clk 0:00:35.6]} 56... Ke7
{[%clk 0:00:04.3]} 57. b7 {[%clk 0:00:34.1]} 57... Kd8 {[%clk 0:00:04.2]} 58.
Rxh7 {[%clk 0:00:34.3]} 58... Rb5 {[%clk 0:00:03.4]} 59. Kxg4 {[%clk 0:00:34]}
59... Rb4+ {[%clk 0:00:03.8]} 60. Kf3 {[%clk 0:00:34]} 60... Rb5 {[%clk
0:00:04.2]} 61. Ke4 {[%clk 0:00:34.3]} 61... Rb4+ {[%clk 0:00:04.6]} 62. Kd3
{[%clk 0:00:34.5]} 62... Rb1 {[%clk 0:00:04.5]} 63. Kc2 {[%clk 0:00:34.6]} 63...
Rb6 {[%clk 0:00:04.2]} 64. Kc3 {[%clk 0:00:35]} 64... Rb5 {[%clk 0:00:04.6]} 65.
Kc4 {[%clk 0:00:35.2]} 65... Rb1 {[%clk 0:00:04.7]} 66. Kc5 {[%clk 0:00:35.6]}
66... Rb2 {[%clk 0:00:05.1]} 67. Kc6 {[%clk 0:00:35.9]} 67... Rc2+ {[%clk
0:00:05.3]} 68. Kb6 {[%clk 0:00:36.3]} 68... Rb2+ {[%clk 0:00:05.7]} 69. Ka7
{[%clk 0:00:36.8]} 69... Ra2+ {[%clk 0:00:06]} 70. Kb8 {[%clk 0:00:37.3]} 70...
Rb2 {[%clk 0:00:05.5]} 71. Rh4 {[%clk 0:00:37.7]} 71... Kd7 {[%clk 0:00:05.5]}
72. Rd4+ {[%clk 0:00:38.2]} 72... Kc6 {[%clk 0:00:05.8]} 73. Rc4+ {[%clk
0:00:36.1]} 73... Kd7 {[%clk 0:00:06.1]} 74. Rc3 {[%clk 0:00:36.2]} 74... Rb4
{[%clk 0:00:05.6]} 75. Rd3+ {[%clk 0:00:36.1]} 75... Kc6 {[%clk 0:00:05.3]} 76.
Kc8 {[%clk 0:00:36.1]} 76... Rh4 {[%clk 0:00:03.8]} 77. b8=Q {[%clk 0:00:34.7]}
77... Rh8+ {[%clk 0:00:03.4]} 78. Rd8 {[%clk 0:00:34.7]} 1-0

[Event "*** SCC Grand Prix: Titled Tuesday Blitz"]
[Site "Chess.com"]
[Date "2020.07.07"]
[Round "9"]
[White "annamaja"]
[Black "guillembaches"]
[Result "1-0"]
[WhiteElo "2272"]
[BlackElo "2395"]
[TimeControl "180+1"]
[EndTime "11:48:08 PDT"]
[Termination "annamaja won on time"]

1. e4 {[%clk 0:03:00.9]} 1... c5 {[%clk 0:03:00]} 2. Nf3 {[%clk 0:03:00.7]} 2...
d6 {[%clk 0:03:00.6]} 3. d4 {[%clk 0:03:01]} 3... cxd4 {[%clk 0:03:01.2]} 4.
Nxd4 {[%clk 0:03:01.9]} 4... Nf6 {[%clk 0:03:01.5]} 5. Nc3 {[%clk 0:03:01.9]}
5... Nc6 {[%clk 0:03:02]} 6. Be2 {[%clk 0:02:54.8]} 6... e5 {[%clk 0:03:01.7]}
7. Nb3 {[%clk 0:02:45.4]} 7... Be7 {[%clk 0:03:01.4]} 8. O-O {[%clk 0:02:42.5]}
8... O-O {[%clk 0:03:01.4]} 9. Be3 {[%clk 0:02:41.6]} 9... Be6 {[%clk
0:03:00.6]} 10. Kh1 {[%clk 0:02:39.5]} 10... a5 {[%clk 0:03:00.5]} 11. a4 {[%clk
0:02:35.4]} 11... Nb4 {[%clk 0:02:59.4]} 12. f4 {[%clk 0:02:30.6]} 12... Qc7
{[%clk 0:02:55.7]} 13. f5 {[%clk 0:02:16.3]} 13... Bd7 {[%clk 0:02:40.3]} 14. g4
{[%clk 0:02:14.3]} 14... Bc6 {[%clk 0:02:27.9]} 15. Bf3 {[%clk 0:02:12.1]} 15...
d5 {[%clk 0:02:24.3]} 16. exd5 {[%clk 0:02:04.7]} 16... Rad8 {[%clk 0:02:20.4]}
17. Qe2 {[%clk 0:01:36.8]} 17... e4 {[%clk 0:02:09.1]} 18. Nxe4 {[%clk
0:01:27.8]} 18... Bxd5 {[%clk 0:01:52.5]} 19. Nxf6+ {[%clk 0:01:04.3]} 19...
Bxf6 {[%clk 0:01:53.4]} 20. Bxd5 {[%clk 0:01:04.5]} 20... Nxd5 {[%clk 0:01:44]}
21. Bd4 {[%clk 0:00:54.3]} 21... Nf4 {[%clk 0:01:30.7]} 22. Qf3 {[%clk
0:00:14.5]} 22... Bxd4 {[%clk 0:01:06.1]} 23. Qxf4 {[%clk 0:00:14.4]} 23... Be5
{[%clk 0:00:58.4]} 24. Qf2 {[%clk 0:00:14.5]} 24... Bxb2 {[%clk 0:00:53.6]} 25.
Rab1 {[%clk 0:00:14.2]} 25... Bf6 {[%clk 0:00:48.8]} 26. Rfd1 {[%clk 0:00:09.5]}
26... h6 {[%clk 0:00:48.3]} 27. Qg2 {[%clk 0:00:05.9]} 27... Rfe8 {[%clk
0:00:43.6]} 28. Rxd8 {[%clk 0:00:05.2]} 28... Rxd8 {[%clk 0:00:42.5]} 29. Re1
{[%clk 0:00:05.6]} 29... Kh7 {[%clk 0:00:38]} 30. h3 {[%clk 0:00:05.7]} 30...
Qc3 {[%clk 0:00:31.8]} 31. Rf1 {[%clk 0:00:04.9]} 31... Rc8 {[%clk 0:00:30.4]}
32. Rf3 {[%clk 0:00:03.8]} 32... Qxc2 {[%clk 0:00:28.8]} 33. Qxc2 {[%clk
0:00:04.4]} 33... Rxc2 {[%clk 0:00:29.7]} 34. Nxa5 {[%clk 0:00:05]} 34... b6
{[%clk 0:00:25.4]} 35. Nb7 {[%clk 0:00:04.4]} 35... Rc4 {[%clk 0:00:20.6]} 36.
Rb3 {[%clk 0:00:02.9]} 36... Bd4 {[%clk 0:00:19.1]} 37. Ra3 {[%clk 0:00:01.7]}
37... h5 {[%clk 0:00:17.1]} 38. Nd6 {[%clk 0:00:01.8]} 38... Rc2 {[%clk
0:00:15.3]} 39. Nxf7 {[%clk 0:00:01.7]} 39... Bc5 {[%clk 0:00:14.3]} 40. Rb3
{[%clk 0:00:01.7]} 40... hxg4 {[%clk 0:00:14.2]} 41. hxg4 {[%clk 0:00:01.8]}
41... Rc4 {[%clk 0:00:14.3]} 42. Ng5+ {[%clk 0:00:02.3]} 42... Kh6 {[%clk
0:00:13.6]} 43. Nf7+ {[%clk 0:00:01.9]} 43... Kh7 {[%clk 0:00:13.9]} 44. Rh3+
{[%clk 0:00:02.6]} 44... Kg8 {[%clk 0:00:13.9]} 45. Ng5 {[%clk 0:00:03.1]} 45...
Rxg4 {[%clk 0:00:13.1]} 46. Ne6 {[%clk 0:00:03.8]} 46... Bf2 {[%clk 0:00:09.7]}
47. Rf3 {[%clk 0:00:03.9]} 47... Bh4 {[%clk 0:00:08.9]} 48. Rd3 {[%clk
0:00:04.1]} 48... Bf6 {[%clk 0:00:08.7]} 49. Rd5 {[%clk 0:00:04.1]} 49... Rxa4
{[%clk 0:00:08.5]} 50. Rd7 {[%clk 0:00:04.4]} 50... Ra5 {[%clk 0:00:07.2]} 51.
Rb7 {[%clk 0:00:04.9]} 51... Rxf5 {[%clk 0:00:06.9]} 52. Rxb6 {[%clk 0:00:05.2]}
52... Re5 {[%clk 0:00:06.9]} 53. Rb8+ {[%clk 0:00:05.4]} 53... Kh7 {[%clk
0:00:06.7]} 54. Nf8+ {[%clk 0:00:06.1]} 54... Kh6 {[%clk 0:00:06.5]} 55. Rb3
{[%clk 0:00:06.9]} 55... Re1+ {[%clk 0:00:06.5]} 56. Kg2 {[%clk 0:00:06.8]}
56... Re2+ {[%clk 0:00:06.6]} 57. Kf1 {[%clk 0:00:07]} 57... Re8 {[%clk
0:00:06.8]} 58. Nd7 {[%clk 0:00:06.6]} 58... Bg5 {[%clk 0:00:05.8]} 59. Rb6+
{[%clk 0:00:05.4]} 59... Kh5 {[%clk 0:00:05.7]} 60. Kg2 {[%clk 0:00:06]} 60...
Kg4 {[%clk 0:00:05.6]} 61. Rb4+ {[%clk 0:00:05.7]} 61... Bf4 {[%clk 0:00:05.7]}
62. Rb2 {[%clk 0:00:06]} 62... g5 {[%clk 0:00:05.6]} 63. Nf6+ {[%clk 0:00:06.4]}
1-0